bitfinex/quotes_SOLUSD_20251013
["timestamp","ask_amount","ask_price","bid_price","bid_amount"]
[1760390744487,8.54,208.22,208.21,1.73369351]
[1760390744683,8.54,208.22,208.21,6.53653679]
[1760390745308,8.54,208.22,208.21,2.39369351]
[1760390745519,8.54,208.22,208.21,7.19653679]
[1760390746107,8.54,208.22,208.21,6.53653679]
[1760390747815,12.66810932,208.26,208.21,6.53653679]
[1760390748000,0.2,208.29,208.25,1.53369351]
[1760390748325,20.8,208.25,208.23,1.53369351]
[1760390748512,8.54,208.24,208.23,1.53369351]
[1760390750804,8.54,208.24,208.23,7.03607549]
[1760390751210,20.8,208.26,208.23,7.03607549]
[1760390751406,8.54,208.25,208.24,0.7]
[1760390751607,8.54,208.25,208.23,4.80238198]
[1760390751821,8.54,208.25,208.23,16.80833693]
[1760390752134,8.54,208.25,208.24,0.7]
[1760390752622,8.54,208.25,208.24,2.23369351]
[1760390753009,8.54,208.25,208.24,7.03584487]
[1760390753611,8.54,208.25,208.22,4.80240807]
[1760390753811,8.54,208.25,208.24,1.53369351]
[1760390754007,8.54,208.25,208.24,2.23369351]
[1760390754900,4.80238198,208.31,208.25,4.80192076]
[1760390755229,8.54,208.3,208.28,1.53369351]
[1760390755420,8.54,208.29,208.28,1.53369351]
[1760390755803,4.80192076,208.32,208.28,2.23369351]
[1760390756020,8.54,208.34,208.31,1.53369351]
[1760390756337,8.54,208.34,208.3,6.13477404]
[1760390756338,8.54,208.33,208.3,6.13477404]
[1760390756536,8.54,208.33,208.32,0.7]
[1760390756909,8.54,208.33,208.32,5.50030721]
[1760390757223,8.54,208.33,208.32,7.03400072]
[1760390758126,8.54,208.33,208.32,6.33400072]
[1760390759128,8.54,208.33,208.32,1.53369351]
[1760390759708,8.54,208.33,208.32,2.23369351]
[1760390760835,37.53449801,208.39,208.32,2.23369351]
[1760390761135,8.54,208.38,208.33,16.8002688]
[1760390761306,8.54,208.38,208.34,0.7]
[1760390761505,8.54,208.38,208.33,16.8002688]
[1760390761817,8.54,208.38,208.34,0.7]
[1760390762122,8.54,208.38,208.34,1.53369351]
[1760390762123,20.8,208.35,208.34,1.53369351]
[1760390762327,29.34,208.35,208.34,1.53369351]
[1760390763111,29.34,208.35,208.31,5.5004913]
[1760390763318,0.2,208.34,208.3,1.53369351]
[1760390763507,20.8,208.31,208.3,1.53369351]
[1760390763831,8.54,208.31,208.3,1.53369351]
[1760390765048,8.54,208.31,208.29,6.33467966]
[1760390766734,8.54,208.31,208.27,4.80145964]
[1760390766930,8.54,208.31,208.28,1.53369351]
[1760390767351,8.54,208.31,208.28,2.39933571]
[1760390767844,8.54,208.31,208.28,82.19933571]
[1760390768037,20.8,208.29,208.28,79.8]
[1760390768236,8.74,208.29,208.24,82.19933571]
[1760390768425,20.8,208.27,208.24,82.19933571]
[1760390768631,8.54,208.26,208.24,82.19933571]
[1760390769427,8.54,208.26,208.25,4.80189043]
[1760390769629,8.54,208.26,208.24,79.8]
[1760390770454,20.8,208.23,208.21,2.59933571]
[1760390770748,8.54,208.22,208.21,8.10215273]
[1760390771255,8.54,208.22,208.21,0.2]
[1760390778649,17.08,208.22,208.21,0.2]
[1760390784958,2.39933571,208.27,208.21,5.69284328]
[1760390785154,20.8,208.23,208.22,0.69]
[1760390785355,29.34,208.23,208.22,0.69]
[1760390785767,20.8,208.25,208.22,0.69]
[1760390785959,8.54,208.24,208.23,2.39933571]
[1760390786656,8.54,208.24,208.23,0.69]
[1760390787074,8.54,208.24,208.23,3.08933571]
[1760390787281,8.54,208.24,208.23,7.89171769]
[1760390787793,8.54,208.24,208.23,5.49238198]
[1760390787963,8.54,208.24,208.23,7.89171769]
[1760390788664,0.2,208.34,208.23,7.89171769]
[1760390788977,14.50695113,208.31,208.24,0.69]
[1760390789183,20.8,208.28,208.24,0.69]
[1760390789380,20.8,208.25,208.24,0.69]
[1760390789576,8.54,208.25,208.24,0.69]
[1760390790668,12.10761542,208.31,208.24,17.49752976]
[1760390790985,0.2,208.36,208.3,2.39933571]
[1760390791276,8.54,208.35,208.34,2.39933571]
[1760390792486,20.8,208.32,208.31,0.69]
[1760390792784,8.54,208.32,208.31,3.08933571]
[1760390793179,8.54,208.32,208.31,7.88987337]
[1760390794377,8.54,208.32,208.31,19.89121752]
[1760390794574,8.54,208.32,208.31,30.76769273]
[1760390795172,20.8,208.36,208.31,30.76769273]
[1760390795378,8.54,208.35,208.34,2.39933571]
[1760390796175,8.54,208.35,208.34,3.08933571]
[1760390797581,8.54,208.35,208.34,7.88918211]
[1760390800374,37.53449801,208.39,208.35,10.87647521]
[1760390800687,37.53449801,208.39,208.38,2.39933571]
[1760390800870,46.07449801,208.39,208.38,3.08933571]
[1760390801483,37.53449801,208.39,208.38,3.08933571]
[1760390801890,37.53449801,208.39,208.38,5.48867142]
[1760390802483,37.53449801,208.39,208.38,10.28759646]
[1760390803171,8.54,208.41,208.39,10.87647521]
[1760390803476,20.8,208.46,208.4,5.47867142]
[1760390803785,20.8,208.46,208.45,2.39933571]
[1760390803969,29.34,208.46,208.45,2.39933571]
[1760390804479,29.34,208.46,208.45,7.19664921]
[1760390804480,8.54,208.46,208.45,7.19664921]
[1760390804789,8.54,208.46,208.45,7.87664921]
[1760390805098,8.54,208.46,208.45,7.19664921]
[1760390805769,8.54,208.46,208.45,2.39933571]
[1760390806896,8.74,208.46,208.43,2.39933571]
[1760390807193,0.2,208.45,208.43,2.39933571]
[1760390807395,8.52,208.44,208.41,4.79810515]
[1760390807597,8.52,208.43,208.41,4.79810515]
[1760390807781,8.52,208.43,208.41,5.47810515]
[1760390807983,8.52,208.43,208.42,0.68]
[1760390808788,8.52,208.43,208.42,7.87733974]
[1760390809992,20.8,208.48,208.42,19.87234981]
[1760390810196,8.72,208.47,208.46,2.39933571]
[1760390810525,8.72,208.47,208.42,4.79800403]
[1760390810526,29.52,208.47,208.44,2.39933571]
[1760390810796,0.2,208.46,208.44,2.39933571]
[1760390811000,8.52,208.45,208.44,2.39933571]
[1760390812599,20.8,208.42,208.37,4.79915534]
[1760390812787,8.52,208.41,208.4,2.39933571]
[1760390816501,20.8,208.38,208.35,2.39933571]
[1760390816695,20.8,208.38,208.3,82.19933571]
[1760390816696,8.52,208.37,208.31,4.80053766]
[1760390816904,20.8,208.34,208.33,2.39933571]
[1760390817210,29.32,208.34,208.33,2.39933571]
[1760390817900,8.52,208.34,208.33,2.39933571]
[1760390818610,8.52,208.34,208.33,7.87941251]
[1760390822232,8.52,208.34,208.33,7.76941251]
[1760390823510,8.52,208.34,208.33,0.68]
[1760390823712,8.52,208.34,208.33,3.07933571]
[1760390823910,8.52,208.34,208.31,7.19984897]
[1760390824224,20.8,208.31,208.3,82.19933571]
[1760390824410,8.52,208.31,208.3,82.19933571]
[1760390824811,29.32,208.31,208.3,82.19933571]
[1760390825218,29.32,208.31,208.3,79.8]
[1760390825415,29.32,208.31,208.3,82.19933571]
[1760390825619,29.32,208.31,208.3,87.00010383]
[1760390827317,29.32,208.31,208.3,84.60076812]
[1760390827628,29.32,208.31,208.3,86.13611191]
[1760390830127,29.32,208.31,208.3,6.33611191]
[1760390832016,29.32,208.31,208.3,7.01611191]
[1760390832425,29.32,208.31,208.3,5.48076812]
[1760390839133,29.32,208.31,208.3,7.01611191]
[1760390840044,29.32,208.31,208.3,5.48076812]
[1760390840244,29.32,208.31,208.27,4.80145964]
[1760390840414,20.8,208.28,208.27,4.80145964]
[1760390840733,20.8,208.28,208.21,104.01400255]
[1760390840734,29.52,208.28,208.22,12.67618116]
[1760390840941,29.52,208.28,208.23,4.80238198]
[1760390841146,29.52,208.28,208.21,0.2]
[1760390841147,1.53534379,208.25,208.21,0.2]
[1760390841314,3.91289914,208.29,208.21,0.2]
[1760390841315,20.8,208.22,208.21,0.2]
[1760390841515,29.32,208.22,208.21,0.2]
[1760390842440,0.2,208.28,208.21,2.40534379]
[1760390842748,6.43873493,208.26,208.25,1.53534379]
[1760390843057,29.32,208.26,208.25,1.53534379]
[1760390843238,8.02,208.26,208.25,2.20534379]
[1760390843546,8.52,208.26,208.25,2.20534379]
[1760390844432,8.52,208.26,208.25,7.00726455]
[1760390845640,8.52,208.26,208.25,19.01206647]
[1760390846356,8.52,208.26,208.25,98.81206647]
[1760390847440,2.50908089,208.35,208.26,10.87647521]
[1760390847640,8.52,208.34,208.3,1.53534379]
[1760390847951,20.8,208.31,208.3,1.53534379]
[1760390848324,29.32,208.31,208.3,2.20534379]
[1760390848832,20.8,208.34,208.3,7.00611191]
[1760390849024,0.2,208.47,208.33,1.53534379]
[1760390849025,1.53534379,208.42,208.33,1.53534379]
[1760390849370,1.53534379,208.42,208.34,2.20534379]
[1760390849371,14.43522194,208.4,208.34,2.20534379]
[1760390849656,20.8,208.36,208.35,1.53534379]
[1760390849827,8.52,208.36,208.35,1.53534379]
[1760390850944,8.52,208.36,208.35,6.33495982]
[1760390851141,8.52,208.36,208.35,7.00495982]
[1760390851543,8.52,208.36,208.35,6.33495982]
[1760390851743,8.52,208.36,208.35,7.00495982]
[1760390852666,20.8,208.4,208.35,19.00399989]
[1760390852861,20.8,208.37,208.36,0.67]
[1760390853141,8.52,208.37,208.36,17.46784986]
[1760390853348,20.8,208.4,208.36,17.46784986]
[1760390853536,20.8,208.37,208.36,16.79784986]
[1760390853730,29.32,208.37,208.36,16.79784986]
[1760390853942,29.32,208.37,208.36,18.33319365]
[1760390854254,29.32,208.37,208.36,19.00319365]
[1760390854456,20.8,208.4,208.36,19.00319365]
[1760390854661,20.8,208.4,208.39,1.53534379]
[1760390854846,29.32,208.4,208.39,1.53534379]
[1760390855030,29.32,208.4,208.39,6.33403854]
[1760390856053,8.52,208.4,208.39,6.33403854]
[1760390857154,20.8,208.41,208.39,6.33403854]
[1760390857359,8.52,208.4,208.39,4.79869475]
[1760390857560,8.52,208.4,208.39,6.33403854]
[1760390857934,8.52,208.4,208.39,7.00403854]
[1760390859129,20.8,208.43,208.39,7.00403854]
[1760390859336,8.52,208.42,208.41,1.53534379]
[1760390859841,8.52,208.42,208.41,2.20534379]
[1760390861253,8.52,208.42,208.41,7.00357803]
[1760390861965,8.52,208.42,208.41,6.33357803]
[1760390862758,8.52,208.42,208.41,86.13357803]
[1760390863170,8.52,208.42,208.41,84.59823424]
[1760390864567,8.52,208.42,208.41,79.8]
[1760390865070,8.52,208.42,208.41,80.46]
[1760390865233,8.52,208.42,208.41,81.33534379]
[1760390865438,8.52,208.42,208.41,84.59823424]
[1760390868361,20.8,208.42,208.41,84.59823424]
[1760390868666,29.32,208.42,208.41,4.79823424]
[1760390869470,29.32,208.42,208.41,5.49823424]
[1760390870254,29.32,208.42,208.41,7.03357803]
[1760390873568,1.93534379,208.47,208.41,7.03357803]
[1760390873569,0.2,208.47,208.41,19.02916365]
[1760390873871,8.52,208.46,208.42,0.7]
[1760390874046,0.2,208.47,208.42,0.7]
[1760390874245,0.2,208.47,208.43,16.79220841]
[1760390874462,8.52,208.46,208.44,0.7]
[1760390874963,8.52,208.46,208.45,1.53534379]
[1760390875167,8.52,208.46,208.45,7.03265729]
[1760390876166,8.72,208.47,208.45,7.03265729]
[1760390876368,8.72,208.47,208.46,2.23534379]
[1760390876567,8.72,208.47,208.46,1.53534379]
[1760390876870,8.72,208.47,208.46,2.23534379]
[1760390878449,8.72,208.47,208.46,7.03242716]
[1760390883568,8.92,208.47,208.43,91.79443458]
[1760390883886,20.8,208.44,208.43,96.59220841]
[1760390884180,29.32,208.44,208.43,84.59777383]
[1760390884763,20.8,208.44,208.43,85.29777383]
[1760390884965,8.52,208.44,208.43,85.29777383]
[1760390885481,8.52,208.44,208.43,86.83311762]
[1760390886478,8.52,208.44,208.43,98.8275522]
[1760390889383,8.52,208.45,208.43,99.68749269]
[1760390889580,8.52,208.45,208.44,3.09528428]
[1760390890774,8.52,208.45,208.44,7.89282793]
[1760390891265,8.52,208.45,208.44,5.49754365]
[1760390891469,8.52,208.45,208.44,7.89282793]
[1760390895383,8.52,208.45,208.44,79.8]
[1760390895690,8.72,208.45,208.44,84.59754365]
[1760390896290,8.52,208.45,208.44,84.59754365]
[1760390900864,8.52,208.45,208.44,85.31754365]
[1760390902692,8.52,208.45,208.44,5.51754365]
[1760390902881,8.52,208.45,208.41,0.72]
[1760390903079,8.52,208.45,208.42,0.72]
[1760390903392,20.8,208.42,208.41,4.79823424]
[1760390903591,29.32,208.42,208.41,4.79823424]
[1760390904792,29.32,208.42,208.39,4.79849456]
[1760390906992,29.32,208.42,208.4,0.72]
[1760390908091,20.8,208.42,208.41,0.72]
[1760390908291,8.52,208.42,208.41,0.72]
[1760390909290,8.52,208.42,208.41,5.51823424]
[1760390909486,0.2,208.47,208.41,85.31823424]
[1760390909686,8.52,208.46,208.42,3.11528428]
[1760390910096,8.52,208.46,208.43,0.72]
[1760390910390,20.8,208.44,208.42,2.39528428]
[1760390910614,8.52,208.43,208.42,5.51800403]
[1760390916612,20.8,208.45,208.42,5.51800403]
[1760390916812,8.52,208.44,208.43,5.51777383]
[1760390920494,8.52,208.44,208.43,4.79777383]
[1760390920817,8.52,208.44,208.43,5.51777383]
[1760390924599,8.52,208.44,208.43,85.31777383]
[1760390928924,8.52,208.44,208.43,87.71305811]
[1760390929315,8.52,208.44,208.41,11.99558562]
[1760390929316,8.72,208.44,208.41,4.79800571]
[1760390929520,8.52,208.44,208.41,4.79800571]
[1760390931831,8.52,208.44,208.4,11.99614621]
[1760390932233,8.52,208.44,208.41,0.68]
[1760390933613,8.52,208.44,208.4,12.67614621]
[1760390934012,8.52,208.44,208.4,17.4746107]
[1760390936544,0.2,208.43,208.4,16.7946107]
[1760390936835,8.52,208.42,208.4,16.7946107]
[1760390937342,8.52,208.42,208.4,17.4746107]
[1760390939835,8.52,208.42,208.4,97.2746107]
[1760390940042,8.52,208.42,208.41,0.68]
[1760390942344,8.52,208.42,208.41,5.47823424]
[1760390943849,8.52,208.42,208.4,79.8]
[1760390944024,8.72,208.42,208.4,79.8]
[1760390944342,23.15313848,208.42,208.4,79.8]
[1760390944845,8.72,208.42,208.4,79.8]
[1760390945048,14.43313848,208.41,208.4,79.8]
[1760390945744,20.8,208.39,208.38,4.79883236]
[1760390946049,29.32,208.39,208.38,5.47883236]
[1760390948924,29.52,208.39,208.34,80.48]
[1760390949119,0.2,208.38,208.34,79.8]
[1760390949321,20.8,208.34,208.33,4.8000768]
[1760390949547,8.52,208.34,208.33,5.4800768]
[1760390950633,8.52,208.34,208.32,84.60027184]
[1760390950844,8.52,208.34,208.32,0.68]
[1760390951022,10.25514511,208.34,208.31,79.8]
[1760390951230,8.52,208.34,208.31,79.8]
[1760390951429,43.7586957,208.33,208.32,0.68]
[1760390951625,29.32,208.33,208.32,0.68]
[1760390953055,29.32,208.33,208.32,5.48030721]
[1760390954632,29.32,208.33,208.32,0.68]
[1760390954964,29.32,208.33,208.32,0.66]
[1760390955131,29.32,208.33,208.31,79.8]
[1760390955332,29.32,208.33,208.31,80.46]
[1760390955835,20.8,208.3,208.28,4.80102219]
[1760390956146,8.52,208.29,208.22,12.00618931]
[1760390956338,20.8,208.26,208.25,0.66]
[1760390956545,29.32,208.26,208.25,0.66]
[1760390956742,29.32,208.26,208.25,5.46192076]
[1760390956938,20.8,208.26,208.25,5.46192076]
[1760390957145,29.32,208.26,208.25,5.46192076]
[1760390957574,29.32,208.26,208.23,84.60216126]
[1760390957856,29.32,208.26,208.25,0.66]
[1760390958836,29.32,208.26,208.24,4.80194211]
[1760390959041,29.32,208.26,208.24,5.46194211]
[1760390959527,20.8,208.26,208.25,0.66]
[1760390959738,4.24415891,208.36,208.25,2.19514511]
[1760390959944,4.24415891,208.36,208.29,1.53514511]
[1760390959945,13.54161221,208.33,208.29,1.53514511]
[1760390960231,13.54161221,208.33,208.28,1.53514511]
[1760390960232,8.52,208.32,208.28,1.53514511]
[1760390960427,20.8,208.29,208.28,1.53514511]
[1760390960730,29.32,208.29,208.27,1.53514511]
[1760390960948,29.32,208.29,208.27,2.19514511]
[1760390961152,29.32,208.29,208.28,0.66]
[1760390961760,29.32,208.29,208.28,5.46122911]
[1760390963545,29.32,208.29,208.28,4.80122911]
[1760390964060,29.32,208.29,208.25,1.53514511]
[1760390964237,41.98403419,208.29,208.25,1.53514511]
[1760390964634,41.98403419,208.29,208.24,1.53514511]
[1760390964855,42.18403419,208.29,208.23,12.00574061]
[1760390965634,42.18403419,208.29,208.22,86.79775773]
[1760390965936,0.2,208.28,208.22,86.79775773]
[1760390966131,20.8,208.24,208.22,86.79775773]
[1760390966435,8.52,208.23,208.22,86.79775773]
[1760390967556,8.52,208.23,208.22,6.99775773]
[1760390967942,8.52,208.23,208.22,5.46261262]
[1760390968255,8.52,208.23,208.22,4.80261262]
[1760390968438,8.52,208.23,208.22,5.46261262]
[1760390968634,8.52,208.23,208.22,6.99775773]
[1760390970670,8.52,208.23,208.22,5.46261262]
[1760390973263,8.52,208.23,208.22,4.80261262]
[1760390974163,8.52,208.23,208.22,5.46261262]
[1760390974963,8.52,208.23,208.22,6.99775773]
[1760390976060,8.52,208.23,208.22,5.46261262]
[1760390979775,8.52,208.23,208.22,4.80261262]
[1760390982572,8.52,208.23,208.22,5.52261262]
[1760390983075,8.52,208.23,208.21,5.00279364]
[1760390983258,8.52,208.23,208.21,0.2]
[1760390983978,4.80312577,208.22,208.21,0.2]
[1760390984272,20.8,208.22,208.21,6.53798839]
[1760390984575,29.32,208.22,208.21,6.53798839]
[1760390984776,29.32,208.22,208.21,7.25798839]
[1760390986469,29.32,208.22,208.21,5.72284328]
[1760390989072,29.52,208.22,208.21,0.2]
[1760390989278,31.05514511,208.22,208.21,0.2]
[1760390989460,36.77798839,208.22,208.21,0.2]
[1760390991875,35.24284328,208.22,208.21,0.2]
[1760390992080,36.77798839,208.22,208.21,0.2]
[1760390994386,26.72284328,208.22,208.21,0.2]
[1760390994682,35.04284328,208.22,208.21,0.2]
[1760390995183,5.72284328,208.22,208.21,0.2]
[1760390995486,14.24284328,208.22,208.21,0.2]
[1760390998858,8.52,208.22,208.21,0.9]
[1760390999786,8.52,208.22,208.21,0.2]
[1760391000679,13.42296476,208.22,208.21,0.2]
[1760391001500,13.42296476,208.22,208.21,0.9]
[1760391001795,8.52,208.22,208.21,0.2]
[1760391002368,8.52,208.22,208.21,0.9]
[1760391003588,5.60350769,208.23,208.21,5.70284328]
[1760391003888,29.32,208.22,208.21,5.00284328]
[1760391004067,29.32,208.22,208.21,0.2]
[1760391004697,29.32,208.22,208.21,0.9]
[1760391004991,20.8,208.22,208.21,5.70284328]
[1760391005293,29.32,208.22,208.21,5.70284328]
[1760391014302,29.32,208.22,208.21,0.86]
[1760391015492,29.32,208.22,208.21,5.66284328]
[1760391016907,29.32,208.22,208.21,0.2]
[1760391017103,10.92130366,208.22,208.21,0.2]
[1760391017485,14.44773531,208.22,208.21,0.2]
[1760391017685,8.52,208.22,208.21,0.2]
[1760391017888,8.52,208.22,208.21,0.86]
[1760391018094,8.52,208.22,208.21,0.2]
[1760391019000,13.42299299,208.22,208.21,0.2]
[1760391021210,15.82429665,208.22,208.21,0.2]
[1760391021606,13.42299299,208.22,208.21,0.2]
[1760391023500,15.82429665,208.22,208.21,0.2]
[1760391023704,16.02429665,208.22,208.21,0.2]
[1760391024309,15.82429665,208.22,208.21,0.2]
[1760391026605,2.51036123,208.26,208.21,8.06414694]
[1760391026811,8.52,208.25,208.22,0.66]
[1760391026988,20.8,208.23,208.22,0.66]
[1760391027420,29.32,208.23,208.22,0.66]
[1760391027917,31.72130366,208.23,208.21,0.2]
[1760391028114,2.40130366,208.22,208.21,0.2]
[1760391028489,31.72130366,208.23,208.21,0.2]
[1760391028717,1.9263647,208.22,208.21,0.2]
[1760391029016,1.9263647,208.22,208.21,0.86]
[1760391030732,4.32766836,208.22,208.21,0.86]
[1760391031529,4.32766836,208.22,208.21,0.2]
[1760391035007,1.9263647,208.22,208.21,0.2]
[1760391035209,4.32766836,208.22,208.21,0.2]
[1760391035529,33.84766836,208.22,208.21,0.2]
[1760391035738,33.64766836,208.22,208.21,0.2]
[1760391035908,25.12766836,208.22,208.21,0.2]
[1760391036106,1.9263647,208.22,208.21,0.86]
[1760391036314,8.52,208.22,208.21,5.66284328]
[1760391036508,12.10879712,208.23,208.21,8.06414694]
[1760391036719,2.40130366,208.3,208.22,3.06130366]
[1760391037008,12.10761551,208.28,208.23,3.06130366]
[1760391037208,20.8,208.25,208.24,0.66]
[1760391037411,8.52,208.25,208.23,4.80238198]
[1760391037906,8.52,208.25,208.23,5.46238198]
[1760391038107,20.8,208.25,208.24,0.66]
[1760391038307,29.32,208.25,208.24,0.66]
[1760391038529,20.8,208.25,208.24,0.66]
[1760391038828,29.32,208.25,208.24,0.66]
[1760391039622,20.8,208.25,208.24,5.46215136]
[1760391039829,29.32,208.25,208.24,5.46215136]
[1760391041026,20.8,208.25,208.24,5.46215136]
[1760391041233,2.40130366,208.32,208.24,19.86883342]
[1760391041416,20.7271082,208.31,208.25,3.06130366]
[1760391041614,20.8,208.28,208.26,0.66]
[1760391041814,2.40130366,208.37,208.27,2.40130366]
[1760391042025,14.4386957,208.35,208.3,2.40130366]
[1760391042230,8.52,208.34,208.31,0.71]
[1760391042425,8.52,208.33,208.31,0.71]
[1760391042634,8.52,208.32,208.31,0.71]
[1760391043028,8.52,208.32,208.31,7.91184132]
[1760391043947,8.52,208.32,208.31,5.51053766]
[1760391045429,8.52,208.32,208.31,7.91184132]
[1760391046125,5.18,208.42,208.31,7.91184132]
[1760391046126,8.52,208.35,208.31,19.91318547]
[1760391046432,8.52,208.35,208.32,0.71]
[1760391046634,8.52,208.35,208.34,2.40130366]
[1760391046837,8.52,208.35,208.34,3.11130366]
[1760391047043,5.18,208.42,208.35,10.87647521]
[1760391047222,20.8,208.39,208.38,2.40130366]
[1760391047423,29.32,208.39,208.38,4.79892504]
[1760391047640,29.32,208.39,208.38,5.50892504]
[1760391048230,8.52,208.39,208.38,7.9102287]
[1760391048547,20.8,208.39,208.38,7.9102287]
[1760391048750,5.18,208.42,208.38,19.9075413]
[1760391048920,0.2,208.47,208.38,19.9075413]
[1760391048921,8.5,208.43,208.41,2.40130366]
[1760391049124,8.5,208.43,208.42,3.11130366]
[1760391049550,8.5,208.43,208.42,5.50800403]
[1760391053635,8.5,208.43,208.41,0.71]
[1760391053842,8.5,208.43,208.42,0.71]
[1760391054048,8.5,208.43,208.42,3.11130366]
[1760391054435,8.5,208.43,208.42,2.40130366]
[1760391054639,8.5,208.43,208.42,3.11130366]
[1760391054956,8.5,208.43,208.42,0.71]
[1760391055654,8.5,208.43,208.42,5.50800403]
[1760391056044,8.5,208.43,208.42,7.90930769]
[1760391058360,8.5,208.43,208.42,5.50800403]
[1760391061243,8.5,208.43,208.42,85.30800403]
[1760391071752,0.2,208.47,208.42,98.83672858]
[1760391071950,20.8,208.44,208.43,0.71]
[1760391072362,29.3,208.44,208.43,0.71]
[1760391073273,29.3,208.44,208.43,5.50777383]
[1760391076247,29.3,208.44,208.43,85.30777383]
[1760391077671,22.53371448,208.44,208.35,0.7]
[1760391077967,22.53371448,208.44,208.36,0.7]
[1760391077968,20.8,208.4,208.36,0.7]
[1760391078170,20.8,208.37,208.36,0.7]
[1760391078370,29.3,208.37,208.36,0.7]
[1760391079469,8.5,208.37,208.36,0.7]
[1760391079881,20.8,208.43,208.37,16.79704371]
[1760391079882,22.33371448,208.43,208.37,16.79704371]
[1760391080073,29.3,208.42,208.38,0.7]
[1760391081366,20.8,208.4,208.39,0.7]
[1760391081566,29.3,208.4,208.37,16.79704371]
[1760391081866,29.3,208.4,208.38,0.7]
[1760391082076,29.3,208.4,208.39,4.79869475]
[1760391082660,29.3,208.4,208.39,5.49869475]
[1760391083878,29.3,208.4,208.37,11.99788837]
[1760391084386,1.53371448,208.39,208.36,79.8]
[1760391084680,8.5,208.38,208.37,0.7]
[1760391084877,8.5,208.38,208.37,80.5]
[1760391085981,8.5,208.38,208.37,84.59915534]
[1760391086180,8.7,208.38,208.36,4.79934772]
[1760391086561,8.5,208.38,208.36,4.79934772]
[1760391087184,0.2,208.4,208.36,4.79934772]
[1760391087384,8.5,208.39,208.37,0.7]
[1760391087562,8.5,208.38,208.36,86.1330622]
[1760391087890,8.5,208.37,208.36,97.00953741]
[1760391088066,8.5,208.37,208.36,97.70953741]
[1760391088386,8.5,208.37,208.36,109.7080016]
[1760391089062,8.5,208.37,208.36,108.17428712]
[1760391091774,8.5,208.38,208.36,108.17428712]
[1760391091976,8.5,208.38,208.37,5.49915534]
[1760391092378,8.5,208.38,208.37,17.49704371]
[1760391097090,8.5,208.38,208.37,97.29704371]
[1760391099792,8.5,208.38,208.37,96.59704371]
[1760391099991,8.5,208.38,208.37,97.29704371]
[1760391103104,8.5,208.38,208.37,108.17351892]
[1760391103273,8.5,208.39,208.37,98.83075819]
[1760391103474,8.5,208.39,208.38,2.23371448]
[1760391104171,8.5,208.4,208.38,2.23371448]
[1760391104407,8.5,208.4,208.39,0.7]
[1760391104705,0.2,208.47,208.41,16.79381986]
[1760391104906,20.8,208.45,208.41,16.79381986]
[1760391105083,0.2,208.45,208.41,16.79381986]
[1760391105402,20.8,208.45,208.41,17.49381986]
[1760391105792,21.0,208.45,208.41,17.49381986]
[1760391106205,20.8,208.45,208.41,16.79381986]
[1760391106373,20.8,208.45,208.42,0.7]
[1760391107069,20.8,208.45,208.43,6.33148831]
[1760391107382,20.8,208.45,208.43,7.03148831]
[1760391108483,21.0,208.47,208.43,19.02592289]
[1760391109001,21.0,208.47,208.43,98.12592289]
[1760391109305,21.0,208.47,208.44,0.68]